[Event "Schack-SM 2022: Mastarklassen-Elit"]
[Site "Fyrishov, Idrottsgatan 2, Uppsala, Sweden"]
[Date "2022.07.05"]
[Round "4.5"]
[White "Cederstam, Carl"]
[Black "Von Bahr, Oskar"]
[Result "1/2-1/2"]
[TimeControl "90 minutes for 40 moves + 30 minutes for the rest of the game + 30 seconds per move from move one."]
[WhiteTitle "FM"]
[BlackTitle "IM"]
[WhiteFideId "1713329"]
[BlackFideId "1703250"]
[WhiteElo "2332"]
[BlackElo "2386"]

1. e4 {[%clk 01:30:55]} {[%emt 00:00:04]} e5 {[%clk 01:30:27]} {[%emt
00:00:33]} 2. Nf3 {[%clk 01:31:07]} {[%emt 00:00:18]} Nc6 {[%clk 01:30:42]}
{[%emt 00:00:16]} 3. Bb5 {[%clk 01:31:20]} {[%emt 00:00:16]} Nf6 {[%clk
01:30:41]} {[%emt 00:00:30]} 4. d3 {[%clk 01:31:26]} {[%emt 00:00:25]} Bc5
{[%clk 01:30:49]} {[%emt 00:00:22]} 5. c3 {[%clk 01:31:08]} {[%emt 00:00:48]}
d6 {[%clk 01:26:27]} {[%emt 00:04:52]} 6. Nbd2 {[%clk 01:29:59]} {[%emt
00:01:38]} O-O {[%clk 01:24:32]} {[%emt 00:02:26]} 7. O-O {[%clk 01:29:53]}
{[%emt 00:00:35]} Bd7 {[%clk 01:15:51]} {[%emt 00:09:12]} 8. a4 {[%clk
01:28:20]} {[%emt 00:02:02]} a6 {[%clk 01:14:17]} {[%emt 00:02:05]} 9. Bc4
{[%clk 01:28:14]} {[%emt 00:00:36]} a5 {[%clk 01:12:08]} {[%emt 00:02:39]} 10.
Re1 {[%clk 01:20:41]} {[%emt 00:08:02]} Be6 {[%clk 01:09:29]} {[%emt 00:03:10]}
11. Bb5 {[%clk 01:18:22]} {[%emt 00:02:48]} Na7 {[%clk 01:06:44]} {[%emt
00:03:17]} 12. d4 {[%clk 01:17:07]} {[%emt 00:01:44]} Nxb5 {[%clk 01:06:59]}
{[%emt 00:00:16]} 13. dxc5 {[%clk 01:16:34]} {[%emt 00:01:02]} Na7 {[%clk
01:07:16]} {[%emt 00:00:13]} 14. Ng5 {[%clk 01:16:08]} {[%emt 00:00:56]} Bg4
{[%clk 01:04:45]} {[%emt 00:03:02]} 15. f3 {[%clk 01:13:35]} {[%emt 00:03:02]}
Bc8 {[%clk 01:00:38]} {[%emt 00:04:37]} 16. f4 {[%clk 00:56:08]} {[%emt
00:17:57]} exf4 {[%clk 00:54:56]} {[%emt 00:06:12]} 17. Nc4 {[%clk 00:53:56]}
{[%emt 00:02:41]} d5 {[%clk 00:44:39]} {[%emt 00:10:49]} 18. exd5 {[%clk
00:52:22]} {[%emt 00:02:03]} Nxd5 {[%clk 00:43:24]} {[%emt 00:01:45]} 19. Re5
{[%clk 00:51:11]} {[%emt 00:01:41]} Ne3 {[%clk 00:36:05]} {[%emt 00:07:50]} 20.
Nxe3 {[%clk 00:31:47]} {[%emt 00:19:54]} fxe3 {[%clk 00:35:53]} {[%emt
00:00:41]} 21. Rd5 {[%clk 00:24:17]} {[%emt 00:08:01]} e2 {[%clk 00:31:05]}
{[%emt 00:05:17]} 22. Rxd8 {[%clk 00:24:30]} {[%emt 00:00:17]} exd1=Q+ {[%clk
00:30:51]} {[%emt 00:00:06]} 23. Rxd1 {[%clk 00:24:57]} {[%emt 00:00:41]} h6
{[%clk 00:28:26]} {[%emt 00:02:55]} 24. Nf3 {[%clk 00:24:29]} {[%emt 00:00:58]}
g5 {[%clk 00:27:43]} {[%emt 00:01:13]} 25. Nd4 {[%clk 00:20:48]} {[%emt
00:04:11]} Re8 {[%clk 00:25:56]} {[%emt 00:02:17]} 26. Bd2 {[%clk 00:20:16]}
{[%emt 00:01:00]} Bg4 {[%clk 00:24:23]} {[%emt 00:02:06]} 27. Re1 {[%clk
00:20:25]} {[%emt 00:00:20]} Bd7 {[%clk 00:23:59]} {[%emt 00:00:55]} 28. b3
{[%clk 00:20:06]} {[%emt 00:00:49]} Rxe1+ {[%clk 00:20:06]} {[%emt 00:04:22]}
29. Bxe1 {[%clk 00:14:45]} {[%emt 00:05:52]} Re8 {[%clk 00:12:02]} {[%emt
00:08:34]} 30. Bg3 {[%clk 00:14:35]} {[%emt 00:00:39]} b6 {[%clk 00:08:31]}
{[%emt 00:04:02]} 31. cxb6 {[%clk 00:14:37]} {[%emt 00:00:27]} cxb6 {[%clk
00:08:58]} {[%emt 00:00:04]} 32. Bc7 {[%clk 00:08:55]} {[%emt 00:06:12]} Nc8
{[%clk 00:09:08]} {[%emt 00:00:19]} 33. Kf2 {[%clk 00:07:05]} {[%emt 00:02:20]}
Re7 {[%clk 00:07:03]} {[%emt 00:02:35]} 34. Bd8 {[%clk 00:05:24]} {[%emt
00:02:11]} Re8 {[%clk 00:07:02]} {[%emt 00:00:31]} 35. Bc7 {[%clk 00:05:50]}
{[%emt 00:00:05]} Re7 {[%clk 00:07:29]} {[%emt 00:00:02]} 36. Bd8 {[%clk
00:03:58]} {[%emt 00:02:22]} Re8 {[%clk 00:07:54]} {[%emt 00:00:05]} 37. Bc7
{[%clk 00:04:23]} {[%emt 00:00:05]} Re7 {[%emt 00:00:18]} 1/2-1/2

[Event "Schack-SM 2022: Mastarklassen-Elit"]
[Site "Fyrishov, Idrottsgatan 2, Uppsala, Sweden"]
[Date "2022.07.04"]
[Round "3.3"]
[White "Trost, Edvin"]
[Black "Johansson, Jan"]
[Result "0-1"]
[TimeControl "90 minutes for 40 moves + 30 minutes for the rest of the game + 30 seconds per move from move one."]
[WhiteTitle "FM"]
[BlackTitle "IM"]
[WhiteFideId "1729519"]
[BlackFideId "1700103"]
[WhiteElo "2345"]
[BlackElo "2306"]

1. d4 {[%clk 01:30:49]} {[%emt 00:00:02]} Nf6 {[%clk 01:30:16]} {[%emt
00:00:52]} 2. c4 {[%clk 01:30:20]} {[%emt 00:01:00]} e6 {[%clk 01:30:38]}
{[%emt 00:00:08]} 3. Bf4 {[%clk 01:26:19]} {[%emt 00:04:30]} c5 {[%clk
01:25:47]} {[%emt 00:05:22]} 4. d5 {[%clk 01:26:16]} {[%emt 00:00:33]} b5
{[%clk 01:18:01]} {[%emt 00:08:16]} 5. Nf3 {[%clk 01:26:04]} {[%emt 00:00:41]}
exd5 {[%clk 01:08:18]} {[%emt 00:10:14]} 6. cxd5 {[%clk 01:25:22]} {[%emt
00:01:12]} Bb7 {[%clk 01:08:41]} {[%emt 00:00:07]} 7. e4 {[%clk 01:18:20]}
{[%emt 00:07:32]} Qe7 {[%clk 01:02:31]} {[%emt 00:06:41]} 8. Be3 {[%clk
01:06:18]} {[%emt 00:12:31]} Qxe4 {[%clk 00:55:49]} {[%emt 00:07:11]} 9. Nc3
{[%clk 01:05:55]} {[%emt 00:00:53]} Qb4 {[%clk 00:36:36]} {[%emt 00:19:43]} 10.
Qe2 {[%clk 00:56:01]} {[%emt 00:10:24]} Be7 {[%clk 00:23:55]} {[%emt 00:13:11]}
11. d6 {[%clk 00:51:07]} {[%emt 00:05:24]} Ne4 {[%clk 00:20:00]} {[%emt
00:04:25]} 12. Bd2 {[%clk 00:48:01]} {[%emt 00:03:36]} Nxd6 {[%clk 00:18:01]}
{[%emt 00:02:29]} 13. Nd5 {[%clk 00:48:01]} {[%emt 00:00:30]} Qe4 {[%clk
00:14:30]} {[%emt 00:04:01]} 14. Qxe4 {[%clk 00:48:19]} {[%emt 00:00:12]} Nxe4
{[%clk 00:14:57]} {[%emt 00:00:05]} 15. Nc7+ {[%clk 00:48:43]} {[%emt
00:00:06]} Kd8 {[%clk 00:15:18]} {[%emt 00:00:08]} 16. Nxa8 {[%clk 00:48:28]}
{[%emt 00:00:46]} Bxa8 {[%clk 00:15:44]} {[%emt 00:00:05]} 17. Ba5+ {[%clk
00:47:19]} {[%emt 00:01:37]} Kc8 {[%clk 00:15:04]} {[%emt 00:01:10]} 18. Bxb5
{[%clk 00:47:32]} {[%emt 00:00:16]} Bf6 {[%clk 00:14:25]} {[%emt 00:01:10]} 19.
Rb1 {[%clk 00:46:06]} {[%emt 00:01:57]} Nc6 {[%clk 00:12:25]} {[%emt 00:02:29]}
20. Bxc6 {[%clk 00:45:23]} {[%emt 00:01:12]} Bxc6 {[%clk 00:12:49]} {[%emt
00:00:08]} 21. O-O {[%clk 00:44:37]} {[%emt 00:01:14]} Kb7 {[%clk 00:10:32]}
{[%emt 00:02:49]} 22. Rfc1 {[%clk 00:40:59]} {[%emt 00:04:07]} Ka6 {[%clk
00:10:08]} {[%emt 00:00:54]} 23. Bc7 {[%clk 00:31:45]} {[%emt 00:09:44]} Re8
{[%clk 00:07:55]} {[%emt 00:02:42]} 24. Bf4 {[%clk 00:30:57]} {[%emt 00:01:19]}
Kb5 {[%clk 00:06:44]} {[%emt 00:01:41]} 25. Re1 {[%clk 00:29:56]} {[%emt
00:01:31]} Re6 {[%clk 00:06:48]} {[%emt 00:00:26]} 26. Re2 {[%clk 00:18:12]}
{[%emt 00:12:15]} a5 {[%clk 00:06:41]} {[%emt 00:00:36]} 27. Rbe1 {[%clk
00:17:52]} {[%emt 00:00:51]} a4 {[%clk 00:06:48]} {[%emt 00:00:23]} 28. Bc1
{[%clk 00:06:28]} {[%emt 00:11:53]} d5 {[%clk 00:06:16]} {[%emt 00:01:03]} 29.
a3 {[%clk 00:04:30]} {[%emt 00:02:29]} d4 {[%clk 00:05:10]} {[%emt 00:01:34]}
30. Nd2 {[%clk 00:02:33]} {[%emt 00:02:28]} Nxd2 {[%clk 00:05:20]} {[%emt
00:00:20]} 31. Bxd2 {[%clk 00:01:57]} {[%emt 00:01:06]} Rxe2 {[%clk 00:05:27]}
{[%emt 00:00:22]} 32. Rxe2 {[%clk 00:02:27]} Kc4 {[%clk 00:05:46]} {[%emt
00:00:12]} 33. Bf4 {[%clk 00:00:33]} {[%emt 00:02:23]} Kb3 {[%clk 00:05:42]}
{[%emt 00:00:34]} 34. Bd6 {[%clk 00:00:31]} {[%emt 00:00:33]} c4 {[%clk
00:05:58]} {[%emt 00:00:14]} 35. Bb4 {[%clk 00:00:31]} {[%emt 00:00:30]} d3
{[%clk 00:05:59]} {[%emt 00:00:28]} 36. Re3 {[%clk 00:00:31]} {[%emt 00:00:30]}
Bxb2 {[%clk 00:05:57]} {[%emt 00:00:32]} 37. Kf1 {[%clk 00:00:31]} {[%emt
00:00:31]} Bxa3 {[%clk 00:04:57]} {[%emt 00:01:30]} 38. Bd2 {[%clk 00:00:31]}
{[%emt 00:00:30]} Bb2 {[%clk 00:04:42]} {[%emt 00:00:44]} 0-1

[Event "Schack-SM 2022: Mastarklassen-Elit"]
[Site "Fyrishov, Idrottsgatan 2, Uppsala, Sweden"]
[Date "2022.07.04"]
[Round "3.4"]
[White "Andersson, Tommy"]
[Black "Von Bahr, Oskar"]
[Result "1/2-1/2"]
[TimeControl "90 minutes for 40 moves + 30 minutes for the rest of the game + 30 seconds per move from move one."]
[WhiteTitle "IM"]
[BlackTitle "IM"]
[WhiteFideId "1703803"]
[BlackFideId "1703250"]
[WhiteElo "2384"]
[BlackElo "2386"]

1. Nf3 {[%clk 01:30:56]} {[%emt 00:00:04]} c5 {[%clk 01:28:24]} {[%emt
00:02:36]} 2. c4 {[%clk 01:30:36]} {[%emt 00:00:49]} Nc6 {[%clk 01:28:16]}
{[%emt 00:00:38]} 3. Nc3 {[%clk 01:27:43]} {[%emt 00:03:23]} g6 {[%clk
01:24:34]} {[%emt 00:04:12]} 4. g3 {[%clk 01:26:07]} {[%emt 00:02:07]} Bg7
{[%clk 01:24:53]} {[%emt 00:00:11]} 5. Bg2 {[%clk 01:26:31]} {[%emt 00:00:06]}
d6 {[%clk 01:24:31]} {[%emt 00:00:51]} 6. O-O {[%clk 01:25:49]} {[%emt
00:01:12]} Bf5 {[%clk 01:24:49]} {[%emt 00:00:13]} 7. b3 {[%clk 01:23:23]}
{[%emt 00:02:56]} Qd7 {[%clk 01:21:45]} {[%emt 00:03:34]} 8. Bb2 {[%clk
01:18:59]} {[%emt 00:04:54]} Bh3 {[%clk 01:19:39]} {[%emt 00:02:36]} 9. Bxh3
{[%clk 01:01:07]} {[%emt 00:18:22]} Qxh3 {[%clk 01:19:57]} {[%emt 00:00:12]} 10.
Rb1 {[%clk 01:01:21]} {[%emt 00:00:15]} Nh6 {[%clk 01:08:06]} {[%emt 00:12:22]}
11. Ng5 {[%clk 00:48:12]} {[%emt 00:13:39]} Qg4 {[%clk 01:01:56]} {[%emt
00:06:40]} 12. f4 {[%clk 00:46:11]} {[%emt 00:02:30]} f6 {[%clk 00:52:36]}
{[%emt 00:09:50]} 13. Nd5 {[%clk 00:32:54]} {[%emt 00:13:48]} O-O {[%clk
00:50:47]} {[%emt 00:02:19]} 14. Ne4 {[%clk 00:28:35]} {[%emt 00:04:49]} Rad8
{[%clk 00:40:15]} {[%emt 00:11:03]} 15. e3 {[%clk 00:27:26]} {[%emt 00:01:38]}
Qxd1 {[%clk 00:36:49]} {[%emt 00:03:56]} 16. Rfxd1 {[%clk 00:26:17]} {[%emt
00:01:38]} Nf7 {[%clk 00:35:57]} {[%emt 00:01:23]} 17. Nc7 {[%clk 00:22:49]}
{[%emt 00:03:58]} Rc8 {[%clk 00:29:35]} {[%emt 00:06:52]} 18. Ne6 {[%clk
00:23:12]} {[%emt 00:00:07]} Rfe8 {[%clk 00:30:02]} {[%emt 00:00:04]} 19. Nxg7
{[%clk 00:19:54]} {[%emt 00:03:47]} Kxg7 {[%clk 00:30:25]} {[%emt 00:00:06]} 20.
d4 {[%clk 00:20:14]} {[%emt 00:00:11]} cxd4 {[%clk 00:29:08]} {[%emt 00:01:47]}
21. exd4 {[%clk 00:20:07]} {[%emt 00:00:36]} d5 {[%clk 00:24:11]} {[%emt
00:05:28]} 22. Nc5 {[%clk 00:11:55]} {[%emt 00:08:42]} Nfd8 {[%clk 00:22:44]}
{[%emt 00:01:57]} 23. cxd5 {[%clk 00:11:39]} {[%emt 00:00:45]} Nb4 {[%clk
00:22:54]} {[%emt 00:00:20]} 24. a3 {[%clk 00:09:41]} {[%emt 00:02:29]} Nxd5
{[%clk 00:22:35]} {[%emt 00:00:48]} 25. Rbc1 {[%clk 00:09:42]} {[%emt
00:00:30]} b6 {[%clk 00:19:24]} {[%emt 00:03:40]} 26. Nd3 {[%clk 00:07:41]}
{[%emt 00:02:32]} Nb7 {[%clk 00:18:21]} {[%emt 00:01:32]} 27. Kf2 {[%clk
00:07:27]} {[%emt 00:00:45]} Na5 {[%clk 00:17:45]} {[%emt 00:01:06]} 28. Rxc8
{[%clk 00:04:44]} {[%emt 00:03:12]} Rxc8 {[%clk 00:18:10]} {[%emt 00:00:05]} 29.
Rc1 {[%clk 00:05:11]} {[%emt 00:00:04]} Rxc1 {[%clk 00:17:06]} {[%emt
00:01:34]} 30. Nxc1 {[%clk 00:05:34]} {[%emt 00:00:07]} Kf7 {[%clk 00:16:17]}
{[%emt 00:01:19]} 31. Ke2 {[%clk 00:03:53]} {[%emt 00:02:11]} b5 {[%clk
00:14:23]} {[%emt 00:02:23]} 32. Kd3 {[%clk 00:04:12]} {[%emt 00:00:12]} Ke6
{[%clk 00:14:07]} {[%emt 00:00:46]} 33. Bc3 {[%clk 00:04:01]} {[%emt 00:00:40]}
Nc6 {[%clk 00:13:01]} {[%emt 00:01:37]} 34. Bd2 {[%clk 00:03:48]} {[%emt
00:00:43]} Kf5 {[%clk 00:12:10]} {[%emt 00:01:20]} 35. h3 {[%clk 00:04:11]} h5
{[%clk 00:11:25]} {[%emt 00:01:23]} 36. Ne2 {[%clk 00:03:21]} a6 {[%clk
00:10:00]} {[%emt 00:03:15]} 37. Ng1 {[%clk 00:01:37]} Ke6 {[%clk 00:05:32]}
{[%emt 00:07:12]} 38. g4 {[%clk 00:01:21]} {[%emt 00:00:45]} hxg4 {[%clk
00:03:58]} {[%emt 00:02:05]} 39. hxg4 {[%clk 00:01:49]} {[%emt 00:00:02]} Nd8
{[%clk 00:03:20]} {[%emt 00:01:08]} 40. Nf3 {[%clk 00:01:31]} {[%emt 00:00:47]}
Nb7 {[%clk 00:02:49]} {[%emt 00:01:02]} 41. Nh4 {[%clk 00:20:03]} {[%emt
00:11:57]} Kf7 {[%clk 00:31:52]} {[%emt 00:01:27]} 42. f5 {[%clk 00:18:17]}
{[%emt 00:02:17]} g5 {[%clk 00:27:00]} {[%emt 00:05:22]} 43. Ng2 {[%clk
00:15:20]} {[%emt 00:03:26]} e6 {[%clk 00:24:02]} {[%emt 00:03:29]} 44. fxe6+
{[%clk 00:15:08]} {[%emt 00:00:42]} Kxe6 {[%clk 00:24:24]} {[%emt 00:00:08]} 45.
Ke4 {[%clk 00:06:52]} {[%emt 00:08:45]} Nd6+ {[%clk 00:24:18]} {[%emt
00:00:37]} 46. Kf3 {[%clk 00:07:12]} {[%emt 00:00:10]} Nf7 {[%clk 00:23:18]}
{[%emt 00:01:28]} 47. Ne1 {[%clk 00:07:28]} {[%emt 00:00:15]} f5 {[%clk
00:20:08]} {[%emt 00:03:41]} 48. Nd3 {[%clk 00:05:08]} {[%emt 00:02:50]} fxg4+
{[%clk 00:19:51]} {[%emt 00:00:46]} 49. Kxg4 {[%clk 00:05:25]} {[%emt
00:00:13]} Nf6+ {[%clk 00:20:07]} {[%emt 00:00:14]} 50. Kf3 {[%clk 00:05:41]}
{[%emt 00:00:14]} Kf5 {[%clk 00:10:45]} {[%emt 00:09:53]} 51. Nc5 {[%clk
00:05:12]} {[%emt 00:00:59]} g4+ {[%clk 00:11:06]} {[%emt 00:00:09]} 52. Kg2
{[%clk 00:05:31]} {[%emt 00:00:10]} Ne4 {[%clk 00:11:09]} {[%emt 00:00:27]} 53.
Be1 {[%clk 00:04:12]} {[%emt 00:01:49]} Nxc5 {[%clk 00:11:07]} {[%emt
00:00:32]} 54. dxc5 {[%clk 00:04:37]} {[%emt 00:00:05]} Ne5 {[%clk 00:10:34]}
{[%emt 00:01:04]} 55. b4 {[%clk 00:03:00]} {[%emt 00:02:08]} Nc4 {[%clk
00:08:54]} {[%emt 00:02:09]} 56. Kg3 {[%clk 00:03:18]} {[%emt 00:00:11]} Nxa3
{[%clk 00:07:50]} {[%emt 00:01:35]} 57. c6 {[%clk 00:03:41]} {[%emt 00:00:06]}
Ke6 {[%clk 00:07:31]} {[%emt 00:00:49]} 58. Kxg4 {[%clk 00:03:27]} {[%emt
00:00:45]} Kd6 {[%clk 00:07:30]} {[%emt 00:00:30]} 59. Kf4 {[%clk 00:03:16]}
{[%emt 00:00:41]} Kxc6 {[%clk 00:07:31]} {[%emt 00:00:30]} 60. Ke4 {[%clk
00:03:40]} {[%emt 00:00:06]} Nc4 {[%clk 00:06:29]} {[%emt 00:01:32]} 61. Kd4
{[%clk 00:03:16]} {[%emt 00:00:54]} Nb6 {[%clk 00:06:01]} {[%emt 00:00:57]} 62.
Bg3 {[%clk 00:03:24]} {[%emt 00:00:23]} Nd5 {[%clk 00:05:53]} {[%emt 00:00:38]}
63. Be1 {[%clk 00:03:49]} {[%emt 00:00:05]} Nf4 {[%clk 00:06:01]} {[%emt
00:00:22]} 64. Bd2 {[%clk 00:03:50]} {[%emt 00:00:28]} Ne6+ {[%clk 00:06:10]}
{[%emt 00:00:21]} 65. Ke5 {[%clk 00:03:22]} {[%emt 00:00:59]} Ng7 {[%clk
00:05:41]} {[%emt 00:00:58]} 66. Be1 {[%clk 00:03:27]} {[%emt 00:00:25]} Ne8
{[%clk 00:05:50]} {[%emt 00:00:22]} 67. Kd4 {[%clk 00:02:59]} {[%emt 00:00:57]}
1/2-1/2

[Event "Schack-SM 2022: Mastarklassen-Elit"]
[Site "Fyrishov, Idrottsgatan 2, Uppsala, Sweden"]
[Date "2022.07.04"]
[Round "3.5"]
[White "Thorn, Eric"]
[Black "Cederstam, Carl"]
[Result "1-0"]
[TimeControl "90 minutes for 40 moves + 30 minutes for the rest of the game + 30 seconds per move from move one."]
[WhiteTitle "FM"]
[BlackTitle "FM"]
[WhiteFideId "1710729"]
[BlackFideId "1713329"]
[WhiteElo "2366"]
[BlackElo "2332"]

1. d4 {[%clk 01:29:44]} {[%emt 00:01:16]} d5 {[%clk 01:30:41]} {[%emt
00:00:19]} 2. c4 {[%clk 01:30:03]} {[%emt 00:00:11]} e6 {[%clk 01:31:00]}
{[%emt 00:00:11]} 3. Nc3 {[%clk 01:30:23]} {[%emt 00:00:10]} a6 {[%clk
01:30:43]} {[%emt 00:00:47]} 4. cxd5 {[%clk 01:30:48]} {[%emt 00:00:05]} exd5
{[%clk 01:31:07]} {[%emt 00:00:07]} 5. Bf4 {[%clk 01:31:13]} {[%emt 00:00:04]}
Nf6 {[%clk 01:30:36]} {[%emt 00:01:01]} 6. e3 {[%clk 01:31:35]} {[%emt
00:00:08]} c5 {[%clk 01:29:01]} {[%emt 00:02:05]} 7. Nf3 {[%clk 01:26:20]}
{[%emt 00:05:45]} Nc6 {[%clk 01:26:26]} {[%emt 00:03:05]} 8. Be2 {[%clk
01:23:17]} {[%emt 00:03:33]} Be6 {[%clk 01:06:08]} {[%emt 00:20:47]} 9. O-O
{[%clk 01:19:35]} {[%emt 00:04:13]} h6 {[%clk 00:58:55]} {[%emt 00:07:42]} 10.
Ne5 {[%clk 01:16:41]} {[%emt 00:03:25]} Qa5 {[%clk 00:49:06]} {[%emt 00:10:18]}
11. Qb3 {[%clk 01:06:16]} {[%emt 00:10:56]} Qb4 {[%clk 00:46:55]} {[%emt
00:02:41]} 12. Nxc6 {[%clk 01:06:07]} {[%emt 00:00:39]} bxc6 {[%clk 00:46:42]}
{[%emt 00:00:43]} 13. Qxb4 {[%clk 01:02:25]} {[%emt 00:04:11]} cxb4 {[%clk
00:47:02]} {[%emt 00:00:10]} 14. Na4 {[%clk 01:02:52]} {[%emt 00:00:04]} Ne4
{[%clk 00:40:43]} {[%emt 00:06:43]} 15. Rfc1 {[%clk 00:57:59]} {[%emt
00:05:29]} Bd7 {[%clk 00:23:43]} {[%emt 00:17:30]} 16. f3 {[%clk 00:52:26]}
{[%emt 00:06:02]} Nd6 {[%clk 00:23:06]} {[%emt 00:01:07]} 17. Nc5 {[%clk
00:36:11]} {[%emt 00:16:46]} Nb5 {[%clk 00:21:30]} {[%emt 00:02:06]} 18. a4
{[%clk 00:35:43]} {[%emt 00:00:58]} bxa3 {[%clk 00:21:29]} {[%emt 00:00:31]} 19.
bxa3 {[%clk 00:36:07]} {[%emt 00:00:06]} Bxc5 {[%clk 00:10:11]} {[%emt
00:11:47]} 20. Rxc5 {[%clk 00:36:16]} {[%emt 00:00:21]} Ke7 {[%clk 00:10:23]}
{[%emt 00:00:19]} 21. a4 {[%clk 00:29:40]} {[%emt 00:07:06]} Nd6 {[%clk
00:10:52]} {[%emt 00:00:01]} 22. Ra5 {[%clk 00:29:46]} {[%emt 00:00:24]} Rhb8
{[%clk 00:09:01]} {[%emt 00:02:21]} 23. Rxa6 {[%clk 00:27:11]} {[%emt
00:03:04]} Rxa6 {[%clk 00:07:39]} {[%emt 00:01:53]} 24. Bxa6 {[%clk 00:27:36]}
{[%emt 00:00:05]} Ra8 {[%clk 00:07:58]} {[%emt 00:00:10]} 25. Bxd6+ {[%clk
00:21:55]} {[%emt 00:06:11]} Kxd6 {[%clk 00:08:27]} {[%emt 00:00:02]} 26. Bd3
{[%clk 00:20:53]} {[%emt 00:01:31]} c5 {[%clk 00:05:45]} {[%emt 00:03:12]} 27.
dxc5+ {[%clk 00:19:38]} {[%emt 00:01:46]} Kxc5 {[%clk 00:06:09]} {[%emt
00:00:06]} 28. a5 {[%clk 00:20:03]} {[%emt 00:00:04]} Bc8 {[%clk 00:04:16]}
{[%emt 00:02:24]} 29. Kf2 {[%clk 00:17:50]} {[%emt 00:02:43]} Kb4 {[%clk
00:02:02]} {[%emt 00:02:43]} 30. a6 {[%clk 00:17:40]} {[%emt 00:00:41]} Kc5
{[%clk 00:02:31]} {[%emt 00:00:02]} 31. Ra5+ {[%clk 00:13:56]} {[%emt
00:04:12]} Kd6 {[%clk 00:02:10]} {[%emt 00:00:51]} 32. Ke2 {[%clk 00:12:44]}
{[%emt 00:01:43]} Bd7 {[%clk 00:00:38]} {[%emt 00:02:02]} 33. Kd2 {[%clk
00:12:25]} {[%emt 00:00:48]} Rc8 {[%clk 00:01:04]} {[%emt 00:00:05]} 34. a7
{[%clk 00:10:44]} {[%emt 00:02:11]} Bc6 {[%clk 00:01:33]} {[%emt 00:00:01]} 35.
e4 {[%clk 00:08:50]} {[%emt 00:02:24]} dxe4 {[%clk 00:00:39]} {[%emt 00:01:24]}
36. Bxe4 {[%clk 00:08:51]} {[%emt 00:00:29]} Bxe4 {[%clk 00:00:34]} {[%emt
00:00:36]} 37. fxe4 {[%clk 00:09:14]} {[%emt 00:00:06]} Ra8 {[%clk 00:01:02]}
{[%emt 00:00:01]} 38. Kd3 {[%clk 00:08:00]} {[%emt 00:01:45]} Kc6 {[%clk
00:00:59]} {[%emt 00:00:33]} 39. Kc4 {[%clk 00:08:03]} {[%emt 00:00:27]} Kb6
{[%clk 00:00:49]} {[%emt 00:00:41]} 40. Kb4 {[%clk 00:08:06]} {[%emt 00:00:26]}
Kc6 {[%clk 00:00:41]} {[%emt 00:00:38]} 41. Ra6+ {[%clk 00:08:00]} {[%emt
00:00:36]} Kc7 {[%clk 00:25:33]} {[%emt 00:05:38]} 42. Kb5 {[%clk 00:37:25]}
{[%emt 00:01:04]} Kb7 {[%clk 00:25:58]} {[%emt 00:00:05]} 43. Ra1 {[%clk
00:37:48]} {[%emt 00:00:06]} 1-0